[Event "DVM U12W 2021"]
[Site "Willingen"]
[Date "2022.08.15"]
[Round "6"]
[White "Prokscha, Charlotte"]
[Black "Mersmann, Jasmin"]
[Result "1-0"]
[ECO "D02"]
[WhiteElo "1241"]
[BlackElo "1232"]
[Annotator "NA RC"]
[PlyCount "115"]
[EventDate "2022.08.12"]
[EventType "team-tourn"]
[EventRounds "7"]
[EventCountry "GER"]
[SourceTitle "playchess.com"]
[Source "ChessBase"]
[SourceQuality "1"]
[TimeControl "40/5400+30:1800+30"]

1. d4 {[%emt 0:00:01]} d5 {[%emt 0:00:04]} 2. Bf4 {[%emt 0:00:06]} Nc6 {[%emt 0:00:25]} 3. e3 {[%emt 0:00:14]} Bf5 {[%emt 0:00:28]} 4. c3 {[%emt 0:00:33]} Nf6 {[%emt 0:00:16]} 5. Nf3 {[%emt 0:00:12]} e6 {[%emt 0:00:14]} 6. Nbd2 {[%emt 0:00:11]} Bd6 {[%emt 0:00:15]} 7. Be2 {[%emt 0:00:24]} a6 {[%emt 0:00:22]} 8. a3 {[%emt 0:00:44]} h6 {[%emt 0:00:06]} 9. h3 {[%emt 0:03:09]} O-O {[%emt 0:00:07]} 10. O-O {[%emt 0:00:17]} Ne7 {[%emt 0:00:46]} 11. Ne5 {[%emt 0:01:20]} Bxe5 {[%emt 0:00:49]} 12. Bxe5 {[%emt 0:01:58]} Ne4 {[%emt 0:00:19]} 13. Nxe4 {[%emt 0:02:42]} Bxe4 {[%emt 0:00:08]} 14. Bd3 {[%emt 0:01:04]} Bxd3 {[%emt 0:00:19]} 15. Qxd3 {[%emt 0:00:12]} c6 {[%emt 0:00:07]} 16. Rfe1 {[%emt 0:01:32]} Ng6 {[%emt 0:00:27]} 17. Bh2 {[%emt 0:00:57]} Re8 {[%emt 0:00:30]} 18. e4 {[%emt 0:00:48]} Qg5 {[%emt 0:00:40]} 19. e5 {[%emt 0:05:51]} Nf4 {[%emt 0:00:24]} 20. Bxf4 {[%emt 0:00:11]} Qxf4 {[%emt 0:00:09]} 21. Qe3 {[%emt 0:00:23]} Qxe3 {[%emt 0:00:13]} 22. Rxe3 {[%emt 0:00:08]} Rf8 {[%emt 0:00:02]} 23. Rae1 {[%emt 0:00:19]} f6 {[%emt 0:00:29]} 24. exf6 {[%emt 0:00:15]} Rxf6 {[%emt 0:00:08]} 25. Rxe6 {[%emt 0:00:09]} Raf8 {[%emt 0:00:14]} 26. Rxf6 {[%emt 0:00:20]} Rxf6 {[%emt 0:00:05]} 27. Re7 {[%emt 0:00:13]} Rf7 {[%emt 0:00:14]} 28. Re5 {[%emt 0:01:45]} Kh7 {[%emt 0:00:12]} 29. g4 {[%emt 0:00:23]} Kg6 {[%emt 0:00:09]} 30. Kg2 {[%emt 0:00:24]} a5 {[%emt 0:00:23]} 31. a4 {[%emt 0:00:45]} Rd7 {[%emt 0:00:25]} 32. h4 {[%emt 0:00:40]} Kf6 {[%emt 0:00:26]} 33. f4 {[%emt 0:00:32]} Re7 {[%emt 0:00:21]} 34. g5+ {[%emt 0:00:33]} hxg5 {[%emt 0:00:16]} 35. hxg5+ {[%emt 0:00:55]} Kf7 {[%emt 0:00:14]} 36. Kg3 {[%emt 0:01:00]} Rxe5 {[%emt 0:00:32]} 37. fxe5 {[%emt 0:00:12]} g6 {[%emt 0:00:08]} 38. Kf3 {[%emt 0:01:54]} Ke6 {[%emt 0:01:04]} 39. Kg4 {[%emt 0:00:13]} Ke7 {[%emt 0:00:13]} 40. b3 {[%emt 0:00:14]} b6 {[%emt 0:00:10]} 41. c4 {[%emt 0:30:40]} dxc4 {[%emt 0:30:57]} 42. bxc4 {[%emt 0:00:12]} Ke6 {[%emt 0:00:43]} 43. Kf4 {[%emt 0:00:21]} c5 {[%emt 0:00:17]} 44. dxc5 {[%emt 0:00:30]} bxc5 {[%emt 0:02:46]} 45. Ke4 {[%emt 0:00:09]} Ke7 {[%emt 0:00:27]} 46. Kd5 {[%emt 0:00:11]} Kd7 {[%emt 0:00:08]} 47. e6+ {[%emt 0:00:22]} Ke7 {[%emt 0:00:08]} 48. Ke5 {[%emt 0:00:07]} Kf8 {[%emt 0:00:23]} 49. Kf6 {[%emt 0:00:09]} Ke8 {[%emt 0:00:34]} 50. e7 {[%emt 0:00:06]} Kd7 {[%emt 0:00:33]} 51. Kf7 {[%emt 0:00:07]} Kd6 {[%emt 0:00:04]} 52. e8=Q {[%emt 0:00:07]} Kc7 {[%emt 0:00:12]} 53. Qe6 {[%emt 0:00:13]} Kd8 {[%emt 0:00:30]} 54. Qe7+ {[%emt 0:00:11]} Kc8 {[%emt 0:00:06]} 55. Ke6 {[%emt 0:00:04]} Kb8 {[%emt 0:00:07]} 56. Kd6 {[%emt 0:00:07]} Ka8 {[%emt 0:00:12]} 57. Kc6 {[%emt 0:00:05]} Kb8 {[%emt 0:00:04]} 58. Qb7# {[%emt 0:00:04]} 1-0

[Event "DVM U12W 2021"]
[Site "Willingen"]
[Date "2022.08.15"]
[Round "6"]
[White "Hefele, Stefanie"]
[Black "Christiansen, Jana-Marie"]
[Result "1-0"]
[ECO "C47"]
[WhiteElo "1180"]
[BlackElo "1120"]
[Annotator "NA RC"]
[PlyCount "33"]
[EventDate "2022.08.12"]
[EventType "team-tourn"]
[EventRounds "7"]
[EventCountry "GER"]
[SourceTitle "playchess.com"]
[Source "ChessBase"]
[SourceQuality "1"]
[TimeControl "40/5400+30:1800+30"]

1. e4 {[%emt 0:00:03]} e5 {[%emt 0:00:00]} 2. Nf3 {[%emt 0:00:05]} Nc6 {[%emt 0:00:00]} 3. Nc3 {[%emt 0:00:28]} Nf6 {[%emt 0:00:00]} 4. d4 {[%emt 0:00:05]} exd4 {[%emt 0:00:03]} 5. Nxd4 {[%emt 0:00:16]} Bb4 {[%emt 0:00:12]} 6. Nxc6 {[%emt 0:00:23]} bxc6 {[%emt 0:00:30]} 7. Bd3 {[%emt 0:01:06]} d5 {[%emt 0:05:31]} 8. exd5 {[%emt 0:00:09]} cxd5 {[%emt 0:00:44]} 9. O-O {[%emt 0:00:58]} O-O {[%emt 0:00:23]} 10. Bg5 {[%emt 0:01:19]} Bb7 {[%emt 0:06:11]} 11. Qf3 {[%emt 0:02:14]} Bxc3 {[%emt 0:00:47]} 12. bxc3 {[%emt 0:00:32]} Re8 {[%emt 0:01:18]} 13. Rfe1 {[%emt 0:00:47]} Qd6 {[%emt 0:01:25]} 14. Qf5 {[%emt 0:02:30]} Bc8 {[%emt 0:00:26]} 15. Rxe8+ {[%emt 0:00:02]} Nxe8 {[%emt 0:00:20]} 16. Qxh7+ {[%emt 0:00:05]} Kf8 {[%emt 0:00:16]} 17. Qh8# {[%emt 0:29:48]} 1-0

[Event "DVM U12W 2021"]
[Site "Willingen"]
[Date "2022.08.15"]
[Round "6"]
[White "Schube, Theresa"]
[Black "Striebeck, Liv"]
[Result "1-0"]
[ECO "C50"]
[WhiteElo "1162"]
[BlackElo "1003"]
[Annotator "NA RC"]
[PlyCount "91"]
[EventDate "2022.08.12"]
[EventType "team-tourn"]
[EventRounds "7"]
[EventCountry "GER"]
[SourceTitle "playchess.com"]
[Source "ChessBase"]
[SourceQuality "1"]
[TimeControl "40/5400+30:1800+30"]

1. e4 {[%emt 0:00:07]} e5 {[%emt 0:00:05]} 2. Nf3 {[%emt 0:00:13]} Nc6 {[%emt 0:00:08]} 3. Bc4 {[%emt 0:00:58]} Nf6 {[%emt 0:00:15]} 4. d3 {[%emt 0:02:01]} Bc5 {[%emt 0:00:25]} 5. Nc3 {[%emt 0:00:30]} d6 {[%emt 0:00:19]} 6. h3 {[%emt 0:01:08]} O-O {[%emt 0:00:16]} 7. Bg5 {[%emt 0:00:16]} Be6 {[%emt 0:00:54]} 8. Bb3 {[%emt 0:03:38]} Bxb3 {[%emt 0:00:34]} 9. axb3 {[%emt 0:00:15]} h6 {[%emt 0:00:24]} 10. Bh4 {[%emt 0:00:36]} g5 {[%emt 0:00:17]} 11. Nxg5 {[%emt 0:01:31]} hxg5 {[%emt 0:00:16]} 12. Bxg5 {[%emt 0:00:11]} Bb4 {[%emt 0:04:02]} 13. O-O {[%emt 0:10:24]} Bxc3 {[%emt 0:02:31]} 14. bxc3 {[%emt 0:00:07]} Qe7 {[%emt 0:03:28]} 15. Qf3 {[%emt 0:00:18]} Kg7 {[%emt 0:00:35]} 16. Qg3 {[%emt 0:04:16]} Rfd8 {[%emt 0:05:12]} 17. f4 {[%emt 0:01:18]} Nh5 {[%emt 0:12:33]} 18. Bxe7+ {[%emt 0:12:29]} Nxg3 {[%emt 0:00:11]} 19. Bxd8 {[%emt 0:00:09]} Nxf1 {[%emt 0:00:51]} 20. Bxc7 {[%emt 0:00:28]} Ng3 {[%emt 0:02:45]} 21. Kf2 {[%emt 0:04:24]} exf4 {[%emt 0:00:38]} 22. Bxd6 {[%emt 0:01:03]} Nh5 {[%emt 0:00:58]} 23. Kf3 {[%emt 0:00:44]} a6 {[%emt 0:02:11]} 24. Bxf4 {[%emt 0:00:56]} Nxf4 {[%emt 0:00:18]} 25. Kxf4 {[%emt 0:00:21]} Kf6 {[%emt 0:02:39]} 26. d4 {[%emt 0:03:32]} Rg8 {[%emt 0:00:51]} 27. g4 {[%emt 0:00:47]} Rh8 {[%emt 0:02:07]} 28. Rh1 {[%emt 0:00:22]} Ne7 {[%emt 0:03:30]} 29. h4 {[%emt 0:06:54]} Ng6+ {[%emt 0:00:32]} 30. Kg3 {[%emt 0:00:10]} Rc8 {[%emt 0:03:06]} 31. c4 {[%emt 0:00:53]} b5 {[%emt 0:02:22]} 32. c5 {[%emt 0:02:36]} Ne7 {[%emt 0:01:20]} 33. Ra1 {[%emt 0:02:20]} Ra8 {[%emt 0:00:13]} 34. g5+ {[%emt 0:02:05]} Ke6 {[%emt 0:01:58]} 35. h5 {[%emt 0:05:29]} a5 {[%emt 0:01:27]} 36. Kf4 {[%emt 0:06:09]} a4 {[%emt 0:00:51]} 37. bxa4 {[%emt 0:00:53]} bxa4 {[%emt 0:01:21]} 38. d5+ {[%emt 0:00:38]} Kd7 {[%emt 0:00:50]} 39. Ke5 {[%emt 0:01:05]} a3 {[%emt 0:00:51]} 40. Kf6 {[%emt 0:01:59]} Ke8 {[%emt 0:01:29]} 41. c3 {[%emt 0:34:44]} Ra6+ {[%emt 0:30:23]} 42. Kg7 {[%emt 0:03:38]} a2 {[%emt 0:01:00]} 43. d6 {[%emt 0:00:43]} Nc6 {[%emt 0:00:27]} 44. h6 {[%emt 0:02:32]} Ra7 {[%emt 0:01:37]} 45. h7 {[%emt 0:01:24]} f6+ {[%emt 0:00:10]} 46. Kh6 {[%emt 0:00:34]} 1-0

[Event "DVM U12W 2021"]
[Site "Willingen"]
[Date "2022.08.15"]
[Round "6"]
[White "Henzel, Leonie"]
[Black "Peglau, Lorena"]
[Result "1/2-1/2"]
[ECO "D02"]
[WhiteElo "1134"]
[BlackElo "1207"]
[Annotator "NA RC"]
[PlyCount "64"]
[EventDate "2022.08.12"]
[EventType "team-tourn"]
[EventRounds "7"]
[EventCountry "GER"]
[SourceTitle "playchess.com"]
[Source "ChessBase"]
[SourceQuality "1"]
[TimeControl "40/5400+30:1800+30"]

1. d4 {[%emt 0:00:02]} e6 {[%emt 0:00:04]} 2. g3 {[%emt 0:00:09]} d5 {[%emt 0:00:07]} 3. Bg2 {[%emt 0:00:10]} Nf6 {[%emt 0:00:13]} 4. Nf3 {[%emt 0:00:20]} c5 {[%emt 0:00:47]} 5. O-O {[%emt 0:00:43]} Nc6 {[%emt 0:00:16]} 6. b3 {[%emt 0:00:36]} Qb6 {[%emt 0:00:20]} 7. Bb2 {[%emt 0:00:38]} cxd4 {[%emt 0:00:44]} 8. Nxd4 {[%emt 0:00:25]} Be7 {[%emt 0:01:57]} 9. Nxc6 {[%emt 0:05:16]} Qxc6 {[%emt 0:00:12]} 10. c4 {[%emt 0:00:40]} Qc5 {[%emt 0:01:52]} 11. Ba3 {[%emt 0:02:08]} Qa5 {[%emt 0:01:24]} 12. Bxe7 {[%emt 0:01:16]} Kxe7 {[%emt 0:00:09]} 13. Qd3 {[%emt 0:01:02]} Rd8 {[%emt 0:01:24]} 14. Rd1 {[%emt 0:01:25]} dxc4 {[%emt 0:01:27]} 15. Qxd8+ {[%emt 0:01:57]} Qxd8 {[%emt 0:00:15]} 16. Rxd8 {[%emt 0:00:08]} Kxd8 {[%emt 0:00:08]} 17. bxc4 {[%emt 0:00:16]} Rb8 {[%emt 0:00:42]} 18. Nc3 {[%emt 0:01:04]} Bd7 {[%emt 0:00:25]} 19. Rd1 {[%emt 0:01:19]} Ke7 {[%emt 0:00:13]} 20. Rc1 {[%emt 0:02:46]} Rc8 {[%emt 0:00:55]} 21. Ne4 {[%emt 0:02:31]} b6 {[%emt 0:02:07]} 22. Nxf6 {[%emt 0:02:24]} Kxf6 {[%emt 0:00:11]} 23. Kf1 {[%emt 0:08:08]} Ke5 {[%emt 0:00:48]} 24. e3 {[%emt 0:00:42]} Bc6 {[%emt 0:01:23]} 25. f4+ {[%emt 0:01:26]} Kd6 {[%emt 0:00:56]} 26. Bxc6 {[%emt 0:01:06]} Rxc6 {[%emt 0:00:16]} 27. Ke2 {[%emt 0:02:00]} b5 {[%emt 0:01:09]} 28. Kd3 {[%emt 0:00:21]} bxc4+ {[%emt 0:00:23]} 29. Rxc4 {[%emt 0:00:19]} Rxc4 {[%emt 0:00:12]} 30. Kxc4 {[%emt 0:00:11]} Kc6 {[%emt 0:00:11]} 31. a4 {[%emt 0:00:43]} a5 {[%emt 0:00:39]} 32. e4 {[%emt 0:01:19]} h6 {[%emt 0:02:02]} 1/2-1/2

[Event "DVM U12W 2021"]
[Site "Willingen"]
[Date "2022.08.15"]
[Round "6"]
[White "Abram, Kristina-Maria"]
[Black "Mehner, Clara"]
[Result "1-0"]
[ECO "C01"]
[WhiteElo "1128"]
[BlackElo "1150"]
[Annotator "NA RC"]
[PlyCount "161"]
[EventDate "2022.08.12"]
[EventType "team-tourn"]
[EventRounds "7"]
[EventCountry "GER"]
[SourceTitle "playchess.com"]
[Source "ChessBase"]
[SourceQuality "1"]
[TimeControl "40/5400+30:1800+30"]

1. e4 {[%emt 0:00:02]} e6 {[%emt 0:00:08]} 2. d4 {[%emt 0:00:15]} d5 {[%emt 0:00:06]} 3. exd5 {[%emt 0:00:06]} exd5 {[%emt 0:00:14]} 4. c4 {[%emt 0:00:07]} Nf6 {[%emt 0:08:27]} 5. Nc3 {[%emt 0:03:09]} Be7 {[%emt 0:03:25]} 6. Nf3 {[%emt 0:00:13]} Bg4 {[%emt 0:03:31]} 7. Bg5 {[%emt 0:01:51]} Be6 {[%emt 0:05:57]} 8. Qb3 {[%emt 0:06:00]} b6 {[%emt 0:06:46]} 9. Bxf6 {[%emt 0:00:44]} Bxf6 {[%emt 0:01:31]} 10. cxd5 {[%emt 0:00:15]} Bg4 {[%emt 0:02:58]} 11. Be2 {[%emt 0:03:51]} O-O {[%emt 0:03:50]} 12. Rd1 {[%emt 0:06:43]} Re8 {[%emt 0:04:30]} 13. O-O {[%emt 0:00:39]} c6 {[%emt 0:01:39]} 14. Rfe1 {[%emt 0:03:49]} cxd5 {[%emt 0:13:27]} 15. Qxd5 {[%emt 0:07:12]} Nd7 {[%emt 0:08:17]} 16. Bb5 {[%emt 0:03:50]} Rc8 {[%emt 0:05:36]} 17. Bxd7 {[%emt 0:05:35]} Qxd7 {[%emt 0:02:46]} 18. Qxd7 {[%emt 0:00:53]} Bxd7 {[%emt 0:00:14]} 19. Ne4 {[%emt 0:04:00]} Be7 {[%emt 0:02:12]} 20. d5 {[%emt 0:01:29]} Bb4 {[%emt 0:02:41]} 21. Re3 {[%emt 0:05:09]} Bg4 {[%emt 0:04:14]} 22. d6 {[%emt 0:02:48]} Rcd8 {[%emt 0:01:50]} 23. h3 {[%emt 0:06:03]} Bxf3 {[%emt 0:03:24]} 24. gxf3 {[%emt 0:00:16]} f5 {[%emt 0:01:18]} 25. Ng3 {[%emt 0:01:59]} f4 {[%emt 0:01:03]} 26. Rxe8+ {[%emt 0:00:09]} Rxe8 {[%emt 0:00:07]} 27. d7 {[%emt 0:02:49]} Rd8 {[%emt 0:00:14]} 28. Ne2 {[%emt 0:02:34]} g5 {[%emt 0:00:29]} 29. a3 {[%emt 0:01:13]} Be7 {[%emt 0:00:49]} 30. Nc3 {[%emt 0:00:18]} a6 {[%emt 0:00:44]} 31. Nd5 {[%emt 0:00:55]} Kf7 {[%emt 0:01:23]} 32. Nxb6 {[%emt 0:01:12]} Bc5 {[%emt 0:00:53]} 33. Nc4 {[%emt 0:01:55]} Ke6 {[%emt 0:00:50]} 34. b4 {[%emt 0:00:43]} Be7 {[%emt 0:00:39]} 35. Nb6 {[%emt 0:01:03]} Bd6 {[%emt 0:00:47]} 36. Re1+ {[%emt 0:01:53]} Kf7 {[%emt 0:00:49]} 37. Rd1 {[%emt 0:02:45]} Ke6 {[%emt 0:00:44]} 38. Rc1 {[%emt 0:09:37]} Kf7 {[%emt 0:04:27]} 39. Rc8 {[%emt 0:00:35]} Be7 {[%emt 0:00:51]} 40. a4 {[%emt 0:01:47]} Ke6 {[%emt 0:01:28]} 41. b5 {[%emt 0:30:30]} a5 {[%emt 0:30:42]} 42. Rxd8 {[%emt 0:00:18]} Bxd8 {[%emt 0:00:14]} 43. Nc4 {[%emt 0:00:31]} Kxd7 {[%emt 0:00:19]} 44. Kf1 {[%emt 0:00:08]} Ke6 {[%emt 0:00:56]} 45. Ke2 {[%emt 0:00:47]} Kd5 {[%emt 0:00:37]} 46. Kd3 {[%emt 0:00:12]} h6 {[%emt 0:01:06]} 47. b6 {[%emt 0:00:36]} Kc6 {[%emt 0:00:39]} 48. Nxa5+ {[%emt 0:00:26]} Kxb6 {[%emt 0:00:15]} 49. Nb3 {[%emt 0:00:15]} Kc6 {[%emt 0:00:48]} 50. Ke4 {[%emt 0:00:41]} Bb6 {[%emt 0:01:25]} 51. Kf5 {[%emt 0:00:25]} Bxf2 {[%emt 0:00:37]} 52. Kg6 {[%emt 0:00:20]} Kb6 {[%emt 0:01:12]} 53. Kxh6 {[%emt 0:00:10]} Bh4 {[%emt 0:00:28]} 54. Nd2 {[%emt 0:00:27]} Ka5 {[%emt 0:00:13]} 55. Ne4 {[%emt 0:00:08]} Kxa4 {[%emt 0:00:17]} 56. Nxg5 {[%emt 0:00:06]} Kb5 {[%emt 0:01:07]} 57. Ne6 {[%emt 0:00:22]} Bg3 {[%emt 0:00:00]} 58. Kg5 {[%emt 0:00:00]} Kc6 {[%emt 0:00:00]} 59. Nxf4 {[%emt 0:00:00]} Bxf4+ {[%emt 0:00:00]} 60. Kxf4 {[%emt 0:00:00]} Kd6 {[%emt 0:00:00]} 61. Kg5 {[%emt 0:00:00]} Ke7 {[%emt 0:00:00]} 62. h4 {[%emt 0:00:00]} Kf7 {[%emt 0:00:00]} 63. h5 {[%emt 0:00:00]} Kg7 {[%emt 0:00:00]} 64. f4 {[%emt 0:00:00]} Kf7 {[%emt 0:00:00]} 65. h6 {[%emt 0:00:00]} Kg8 {[%emt 0:00:00]} 66. f5 {[%emt 0:00:00]} Kf7 {[%emt 0:00:00]} 67. f6 {[%emt 0:00:00]} Kg8 {[%emt 0:00:00]} 68. Kf5 {[%emt 0:00:00]} Kh8 {[%emt 0:00:00]} 69. Ke6 {[%emt 0:00:00]} Kg8 {[%emt 0:00:00]} 70. Ke7 {[%emt 0:00:00]} Kh7 {[%emt 0:00:00]} 71. f7 {[%emt 0:00:00]} Kxh6 {[%emt 0:00:00]} 72. f8=Q+ {[%emt 0:00:06]} Kg5 {[%emt 0:00:15]} 73. Qf6+ {[%emt 0:00:00]} Kg4 {[%emt 0:00:00]} 74. Ke6 {[%emt 0:00:00]} Kg3 {[%emt 0:00:00]} 75. Qf5 {[%emt 0:00:00]} Kg2 {[%emt 0:00:00]} 76. Qf4 {[%emt 0:00:00]} Kh3 {[%emt 0:00:00]} 77. Qg5 {[%emt 0:00:00]} Kh2 {[%emt 0:00:00]} 78. Ke5 {[%emt 0:00:00]} Kh3 {[%emt 0:00:00]} 79. Kf4 {[%emt 0:00:00]} Kh2 {[%emt 0:00:00]} 80. Kf3 {[%emt 0:00:00]} Kh1 {[%emt 0:00:00]} 81. Qg2# {[%emt 0:00:00]} 1-0

[Event "DVM U12W 2021"]
[Site "Willingen"]
[Date "2022.08.15"]
[Round "6"]
[White "Belkina, Elisabeth"]
[Black "Shynkar, Darya"]
[Result "1/2-1/2"]
[ECO "E61"]
[WhiteElo "1126"]
[BlackElo "1001"]
[Annotator "NA RC"]
[PlyCount "66"]
[EventDate "2022.08.12"]
[EventType "team-tourn"]
[EventRounds "7"]
[EventCountry "GER"]
[SourceTitle "playchess.com"]
[Source "ChessBase"]
[SourceQuality "1"]
[TimeControl "40/5400+30:1800+30"]

1. d4 {[%emt 0:00:02]} Nf6 {[%emt 0:00:00]} 2. Nf3 {[%emt 0:01:17]} g6 {[%emt 0:00:09]} 3. Bf4 {[%emt 0:00:17]} Bg7 {[%emt 0:00:23]} 4. e3 {[%emt 0:00:28]} O-O {[%emt 0:00:15]} 5. c4 {[%emt 0:00:23]} d6 {[%emt 0:00:20]} 6. Nc3 {[%emt 0:00:25]} Nbd7 {[%emt 0:08:16]} 7. Bd3 {[%emt 0:00:15]} Re8 {[%emt 0:06:40]} 8. Qc2 {[%emt 0:03:28]} b6 {[%emt 0:08:54]} 9. O-O {[%emt 0:01:26]} Bb7 {[%emt 0:06:47]} 10. Nd2 {[%emt 0:03:23]} e5 {[%emt 0:05:17]} 11. Bg5 {[%emt 0:00:22]} h6 {[%emt 0:01:44]} 12. Bh4 {[%emt 0:14:51]} Rc8 {[%emt 0:13:18]} 13. d5 {[%emt 0:00:31]} c6 {[%emt 0:07:00]} 14. e4 {[%emt 0:02:16]} b5 {[%emt 0:12:29]} 15. b3 {[%emt 0:01:22]} cxd5 {[%emt 0:03:18]} 16. Nxb5 {[%emt 0:01:21]} Qb6 {[%emt 0:05:38]} 17. a4 {[%emt 0:03:41]} a5 {[%emt 0:04:48]} 18. Qb1 {[%emt 0:06:29]} dxe4 {[%emt 0:00:57]} 19. Bxe4 {[%emt 0:01:00]} Nxe4 {[%emt 0:00:09]} 20. Nxe4 {[%emt 0:01:26]} Bxe4 {[%emt 0:00:10]} 21. Qxe4 {[%emt 0:00:43]} Nc5 {[%emt 0:00:31]} 22. Qe3 {[%emt 0:02:58]} Qb8 {[%emt 0:01:29]} 23. Rfd1 {[%emt 0:07:39]} Re6 {[%emt 0:02:15]} 24. Rd2 {[%emt 0:00:54]} h5 {[%emt 0:01:40]} 25. Rb1 {[%emt 0:04:49]} Kh7 {[%emt 0:01:30]} 26. Rd5 {[%emt 0:01:49]} f6 {[%emt 0:00:39]} 27. Bg3 {[%emt 0:01:30]} f5 {[%emt 0:00:21]} 28. Qc3 {[%emt 0:01:21]} f4 {[%emt 0:00:19]} 29. Bh4 {[%emt 0:02:16]} e4 {[%emt 0:00:43]} 30. Qxa5 {[%emt 0:01:58]} f3 {[%emt 0:02:00]} 31. Qe1 {[%emt 0:00:26]} fxg2 {[%emt 0:00:11]} 32. Kxg2 {[%emt 0:01:09]} Rce8 {[%emt 0:02:17]} 33. Bg5 {[%emt 0:06:21]} Nd3 1/2-1/2

[Event "DVM U12W 2021"]
[Site "Willingen"]
[Date "2022.08.15"]
[Round "6"]
[White "Gerlach, Lorena"]
[Black "Schuelke, Rosalie"]
[Result "0-1"]
[ECO "D02"]
[WhiteElo "1120"]
[BlackElo "1297"]
[Annotator "NA RC"]
[PlyCount "138"]
[EventDate "2022.08.12"]
[EventType "team-tourn"]
[EventRounds "7"]
[EventCountry "GER"]
[SourceTitle "playchess.com"]
[Source "ChessBase"]
[SourceQuality "1"]
[TimeControl "40/5400+30:1800+30"]

1. d4 {[%emt 0:00:03]} d5 {[%emt 0:00:11]} 2. Nf3 {[%emt 0:00:12]} Nf6 {[%emt 0:00:19]} 3. g3 {[%emt 0:00:08]} Bg4 {[%emt 0:00:59]} 4. Bg2 {[%emt 0:00:14]} e6 {[%emt 0:00:35]} 5. O-O {[%emt 0:00:14]} c5 {[%emt 0:00:37]} 6. b3 {[%emt 0:05:05]} Nc6 {[%emt 0:00:56]} 7. Bb2 {[%emt 0:02:36]} Be7 {[%emt 0:02:17]} 8. c4 {[%emt 0:00:55]} dxc4 {[%emt 0:02:37]} 9. bxc4 {[%emt 0:00:20]} Qb6 {[%emt 0:06:59]} 10. Qb3 {[%emt 0:10:00]} Qxb3 {[%emt 0:02:41]} 11. axb3 {[%emt 0:00:10]} Bxf3 {[%emt 0:01:59]} 12. Bxf3 {[%emt 0:00:53]} cxd4 {[%emt 0:00:19]} 13. Rd1 {[%emt 0:00:55]} Rd8 {[%emt 0:01:56]} 14. Bxc6+ {[%emt 0:02:24]} bxc6 {[%emt 0:00:07]} 15. Rxa7 {[%emt 0:00:08]} c5 {[%emt 0:00:38]} 16. Ba3 {[%emt 0:08:25]} Rb8 {[%emt 0:02:09]} 17. Rc7 {[%emt 0:06:05]} Bd6 {[%emt 0:03:55]} 18. Rc6 {[%emt 0:04:28]} Kd7 {[%emt 0:01:14]} 19. Ra6 {[%emt 0:01:27]} Rhc8 {[%emt 0:03:46]} 20. e3 {[%emt 0:03:00]} e5 {[%emt 0:02:24]} 21. Rd3 {[%emt 0:06:31]} Ra8 {[%emt 0:01:00]} 22. Rxa8 {[%emt 0:01:06]} Rxa8 {[%emt 0:00:07]} 23. f4 {[%emt 0:03:46]} e4 {[%emt 0:04:07]} 24. Rd1 {[%emt 0:01:42]} d3 {[%emt 0:00:29]} 25. h3 {[%emt 0:01:38]} Kc6 {[%emt 0:01:07]} 26. Kf2 {[%emt 0:02:38]} Bc7 {[%emt 0:03:18]} 27. g4 {[%emt 0:03:57]} Nd7 {[%emt 0:03:30]} 28. Rd2 {[%emt 0:00:59]} Ba5 {[%emt 0:01:35]} 29. Ra2 {[%emt 0:00:16]} Bb4 {[%emt 0:01:29]} 30. h4 {[%emt 0:01:05]} f6 {[%emt 0:02:50]} 31. Kf1 {[%emt 0:05:20]} Nf8 {[%emt 0:02:33]} 32. Ra1 {[%emt 0:00:21]} Ng6 {[%emt 0:02:38]} 33. h5 {[%emt 0:00:38]} Nh4 {[%emt 0:00:33]} 34. Bb2 {[%emt 0:00:10]} Rxa1 {[%emt 0:00:31]} 35. Bxa1 {[%emt 0:00:08]} Nf3 {[%emt 0:00:23]} 36. Bc3 {[%emt 0:00:23]} Nh2+ {[%emt 0:01:08]} 37. Ke1 {[%emt 0:00:30]} Nxg4 {[%emt 0:00:23]} 38. Bxb4 {[%emt 0:00:22]} cxb4 {[%emt 0:00:17]} 39. Nd2 {[%emt 0:00:41]} f5 {[%emt 0:00:16]} 40. Nf1 {[%emt 0:00:15]} g6 {[%emt 0:02:37]} 41. hxg6 {[%emt 0:30:48]} hxg6 {[%emt 0:30:24]} 42. Kd2 {[%emt 0:00:09]} Nf6 {[%emt 0:00:28]} 43. Ng3 {[%emt 0:00:24]} Nd7 {[%emt 0:00:57]} 44. Nh1 {[%emt 0:00:45]} Nc5 {[%emt 0:00:32]} 45. Nf2 {[%emt 0:00:40]} Nxb3+ {[%emt 0:00:18]} 46. Kd1 {[%emt 0:00:10]} Na5 {[%emt 0:00:15]} 47. Kc1 {[%emt 0:00:39]} Nxc4 {[%emt 0:00:08]} 48. Nd1 {[%emt 0:00:17]} Kb5 {[%emt 0:00:20]} 49. Kb1 {[%emt 0:00:16]} Ka4 {[%emt 0:00:29]} 50. Ka1 {[%emt 0:00:43]} Kb3 {[%emt 0:00:26]} 51. Kb1 {[%emt 0:00:15]} Ka3 {[%emt 0:03:00]} 52. Ka1 {[%emt 0:00:43]} b3 {[%emt 0:00:28]} 53. Kb1 {[%emt 0:01:41]} b2 {[%emt 0:00:26]} 54. Nxb2 {[%emt 0:00:14]} Nxb2 {[%emt 0:00:05]} 55. Kc1 {[%emt 0:00:06]} Nc4 {[%emt 0:00:08]} 56. Kd1 {[%emt 0:00:07]} Nxe3+ {[%emt 0:00:07]} 57. Kd2 {[%emt 0:00:07]} Nd5 {[%emt 0:00:13]} 58. Kd1 {[%emt 0:00:08]} Nxf4 {[%emt 0:00:11]} 59. Kd2 {[%emt 0:00:09]} g5 {[%emt 0:00:09]} 60. Ke3 {[%emt 0:00:11]} g4 {[%emt 0:00:08]} 61. Kxf4 {[%emt 0:00:21]} d2 {[%emt 0:00:10]} 62. Kxf5 {[%emt 0:00:11]} d1=Q {[%emt 0:00:11]} 63. Kxe4 {[%emt 0:00:03]} g3 {[%emt 0:00:13]} 64. Ke3 {[%emt 0:00:09]} g2 {[%emt 0:00:13]} 65. Kf4 {[%emt 0:00:07]} g1=Q {[%emt 0:00:24]} 66. Kf5 {[%emt 0:00:14]} Qe2 {[%emt 0:00:11]} 67. Kf6 {[%emt 0:00:11]} Qgf1+ {[%emt 0:00:08]} 68. Kg5 {[%emt 0:00:07]} Qeg2+ {[%emt 0:00:06]} 69. Kh4 {[%emt 0:00:06]} Qfh1# {[%emt 0:00:06]} 0-1

[Event "DVM U12W 2021"]
[Site "Willingen"]
[Date "2022.08.15"]
[Round "6"]
[White "Kopylov, Diana"]
[Black "Wagner, Cosima Thien-An"]
[Result "1/2-1/2"]
[ECO "D20"]
[WhiteElo "1108"]
[BlackElo "1301"]
[Annotator "NA RC"]
[PlyCount "41"]
[EventDate "2022.08.12"]
[EventType "team-tourn"]
[EventRounds "7"]
[EventCountry "GER"]
[SourceTitle "playchess.com"]
[Source "ChessBase"]
[SourceQuality "1"]
[TimeControl "40/5400+30:1800+30"]

1. d4 {[%emt 0:00:03]} d5 {[%emt 0:00:05]} 2. c4 {[%emt 0:00:09]} dxc4 {[%emt 0:00:05]} 3. e4 {[%emt 0:00:08]} e5 {[%emt 0:00:16]} 4. d5 {[%emt 0:00:35]} Nf6 {[%emt 0:00:10]} 5. Nc3 {[%emt 0:02:54]} b5 {[%emt 0:01:04]} 6. a4 {[%emt 0:05:58]} b4 {[%emt 0:00:39]} 7. Na2 {[%emt 0:04:09]} Nxe4 {[%emt 0:01:51]} 8. Bxc4 {[%emt 0:02:03]} Nxf2 {[%emt 0:00:17]} 9. Kxf2 {[%emt 0:01:44]} Qh4+ {[%emt 0:00:16]} 10. g3 {[%emt 0:02:27]} Qxc4 {[%emt 0:00:13]} 11. Nf3 {[%emt 0:01:37]} f6 {[%emt 0:06:01]} 12. b3 {[%emt 0:07:16]} Qe4 {[%emt 0:09:13]} 13. Re1 {[%emt 0:05:48]} Qf5 {[%emt 0:01:12]} 14. Be3 {[%emt 0:03:21]} Bd6 {[%emt 0:09:48]} 15. Kg1 {[%emt 0:10:47]} O-O {[%emt 0:07:59]} 16. Rf1 {[%emt 0:04:35]} Bb7 {[%emt 0:10:18]} 17. Qd2 {[%emt 0:09:23]} Qe4 {[%emt 0:08:09]} 18. Rad1 {[%emt 0:02:16]} Bxd5 {[%emt 0:06:01]} 19. Qxd5+ {[%emt 0:01:49]} Qxd5 {[%emt 0:01:05]} 20. Rxd5 {[%emt 0:00:11]} Nc6 {[%emt 0:02:31]} 21. Bc5 {[%emt 0:06:20]} 1/2-1/2